fUST/lending_fUST_20250210
["ID","MTS","AMOUNT","RATE_DAILY","PERIOD"]
[352529166,1739152266375,-728.78,0.00013835,2]
[352529167,1739152266394,-628.26,0.00013835,2]
[352529168,1739152266411,-2613.92,0.00013835,2]
[352529169,1739152266429,-763.88,0.00013835,2]
[352529170,1739152266443,-878.89,0.00013835,2]
[352529171,1739152266460,-564.96,0.00013835,2]
[352529172,1739152266480,-557.26,0.00013835,2]
[352529173,1739152266499,-160.05648958,0.00013971,2]
[352529174,1739152266512,-151.0,0.00013972,2]
[352529175,1739152266531,-237.127421,0.00013972,2]
[352529176,1739152266545,-635.09,0.00013972,2]
[352529177,1739152266562,-604.59,0.00013972,2]
[352529178,1739152266575,-608.55,0.00013972,2]
[352529179,1739152266594,-969.86,0.00013972,2]
[352529180,1739152266609,-460.19912,0.00013972,2]
[352529181,1739152266624,-460.19912,0.00013972,2]
[352529182,1739152266640,-151.839844,0.00013972,2]
[352529183,1739152266655,-613.54,0.00013972,2]
[352529184,1739152266670,-1077.78,0.00013972,2]
[352529185,1739152266685,-500.0,0.00013972,2]
[352529186,1739152266699,-151.0,0.00013972,2]
[352529187,1739152266714,-151.0,0.00013972,2]
[352529188,1739152266728,-554.92,0.00013972,2]
[352529189,1739152266739,-539.2,0.00013972,2]
[352529190,1739152266749,-557.09,0.00013972,2]
[352529191,1739152266758,-500.0,0.00013972,2]
[352529192,1739152266767,-1864.96,0.00013972,2]
[352529193,1739152266777,-577.33,0.00013972,2]
[352529194,1739152266787,-2822.04,0.00013972,2]
[352529195,1739152266796,-1137.01,0.00013972,2]
[352529196,1739152266806,-666.09,0.00013972,2]
[352529197,1739152266815,-4022.53,0.00013972,2]
[352529198,1739152266825,-9424.55,0.00013972,2]
[352529199,1739152266837,-151.0,0.00013972,2]
[352529200,1739152266847,-155.130168,0.00013972,2]
[352529201,1739152266856,-3602.34,0.00013972,2]
[352529202,1739152266866,-757.11,0.00013972,2]
[352529203,1739152266876,-3535.43,0.00013972,2]
[352529204,1739152266886,-1817.61,0.00013972,2]
[352529205,1739152266896,-3681.99,0.00013972,2]
[352529206,1739152266906,-1109.29,0.00013972,2]
[352529207,1739152266916,-729.55,0.00013972,2]
[352529208,1739152266926,-504.85,0.00013972,2]
[352529209,1739152267056,-178.8941,0.00013972,2]
[352529210,1739152267125,-1284.63,0.00013972,2]
[352529211,1739152267135,-178.8941,0.00013972,2]
[352529212,1739152267145,-529.48,0.00013972,2]
[352529213,1739152267155,-20812.72,0.00013972,2]
[352529214,1739152267164,-1385.18,0.00013972,2]
[352529215,1739152267174,-1112.05,0.00013972,2]
[352529216,1739152267183,-1307.84,0.00013972,2]
[352529217,1739152267193,-1245.17,0.00013972,2]
[352529218,1739152267202,-152.949574,0.00013972,2]
[352529219,1739152267211,-9435.74,0.00013972,2]
[352529220,1739152267220,-538.43,0.00013972,2]
[352529221,1739152267230,-152.949574,0.00013972,2]
[352529222,1739152267239,-2173.9,0.00013972,2]
[352529223,1739152267250,-547.28,0.00013972,2]
[352529224,1739152267259,-500.0,0.00013972,2]
[352529225,1739152267270,-787.47,0.00013972,2]
[352529226,1739152267283,-936.27,0.00013972,2]
[352529227,1739152267292,-1833.45,0.00013972,2]
[352529228,1739152267302,-978.8,0.00013972,2]
[352529229,1739152267311,-989.62,0.00013972,2]
[352529230,1739152267321,-662.14,0.00013972,2]
[352529231,1739152267334,-728.78,0.00013972,2]
[352529232,1739152267343,-628.26,0.00013972,2]
[352529233,1739152267354,-2613.92,0.00013972,2]
[352529234,1739152267364,-763.88,0.00013972,2]
[352529235,1739152267373,-878.89,0.00013972,2]
[352529236,1739152267382,-564.96,0.00013972,2]
[352529237,1739152267392,-557.26,0.00013972,2]
[352529238,1739152267400,-2943.72,0.00014,2]
[352529239,1739152267410,-386.0,0.00014,4]
[352529240,1739152267419,-635.13,0.00014109,2]
[352529241,1739152267428,-604.67660605,0.00014109,2]
[352529242,1739152267438,-608.57602959,0.00014109,2]
[352529243,1739152267447,-969.86215599,0.00014109,2]
[352529244,1739152267456,-613.56756094,0.00014109,2]
[352529245,1739152267466,-1077.84130602,0.00014109,2]
[352529246,1739152267475,-410.67710563,0.00014109,2]
[352529247,1739152267484,-555.10167448,0.00014109,2]
[352529248,1739152267494,-539.38271021,0.00014109,2]
[352529249,1739152267503,-557.13,0.00014109,2]
[352529250,1739152267512,-422.95203277,0.00014109,2]
[352529251,1739152267522,-151.0,0.00014109,2]
[352529252,1739152267532,-152.864267,0.00014109,2]
[352529253,1739152267541,-1865.03308943,0.00014109,2]
[352529254,1739152267550,-151.0,0.00014109,2]
[352529255,1739152267560,-577.40634308,0.00014109,2]
[352529256,1739152267569,-2822.13,0.00014109,2]
[352529257,1739152267581,-1137.02331791,0.00014109,2]
[352529258,1739152267590,-666.25129277,0.00014109,2]
[352529259,1739152267600,-4022.67924027,0.00014109,2]
[352529260,1739152267609,-9424.73420386,0.00014109,2]
[352529261,1739152267618,-3602.39075093,0.00014109,2]
[352529262,1739152267627,-757.14192135,0.00014109,2]
[352529263,1739152267636,-3535.56328897,0.00014109,2]
[352529264,1739152267646,-151.0,0.00014109,2]
[352529265,1739152267655,-1817.82435092,0.00014109,2]
[352529266,1739152267665,-3682.21380697,0.00014109,2]
[352529267,1739152267675,-1109.47238847,0.00014109,2]
[352529268,1739152267685,-729.5526689,0.00014109,2]
[352529269,1739152267694,-505.01994689,0.00014109,2]
[352529270,1739152267704,-1284.65004446,0.00014109,2]
[352529271,1739152267714,-529.67715191,0.00014109,2]
[352529272,1739152267723,-20812.8446,0.00014109,2]
[352529273,1739152267733,-1385.27557243,0.00014109,2]
[352529274,1739152267743,-1112.19153594,0.00014109,2]
[352529275,1739152267752,-1308.03909583,0.00014109,2]
[352529276,1739152267761,-1245.39594899,0.00014109,2]
[352529277,1739152267770,-9435.8,0.00014109,2]
[352529278,1739152267780,-538.60802193,0.00014109,2]
[352529279,1739152267790,-2173.9923762,0.00014109,2]
[352529280,1739152267799,-547.48427062,0.00014109,2]
[352529281,1739152267808,-295.52502056,0.00014109,2]
[352529282,1739152267818,-787.5174788,0.00014109,2]
[352529283,1739152267827,-936.27994924,0.00014109,2]
[352529284,1739152267840,-1833.61259732,0.00014109,2]
[352529285,1739152267850,-978.80558802,0.00014109,2]
[352529286,1739152267859,-989.75203711,0.00014109,2]
[352529287,1739152267868,-230.4791153,0.00014109,2]
[352529288,1739152267885,-431.7060366,0.00014109,2]
[352529289,1739152267895,-626.84967676,0.00014109,2]
[352529290,1739152267907,-102.03144087,0.00014109,2]
[352529291,1739152267916,-628.40041928,0.00014109,2]
[352529292,1739152267926,-1381.4899499,0.00014109,2]
[352529293,1739152268129,-1232.61512805,0.00014109,2]
[352529294,1739152268139,-763.93,0.00014109,2]
[352529295,1739152268148,-878.91695402,0.00014109,2]
[352529296,1739152268158,-71.58703328,0.00014109,2]
[352529297,1739152268683,-476.5,0.00010958,2]
[352529306,1739153134128,-1213.6344594,0.00010002,2]
[352529307,1739153247084,-166.44266784,0.00010002,2]
[352529308,1739153249093,-6398.88207188,0.00010002,2]
[352529309,1739153352153,-340.22385008,0.00010002,2]
[352529310,1739153352280,-400.0,0.00010685,2]
[352529311,1739153352303,-89.95374992,0.00010685,2]
[352529312,1739153367147,-405.10529759,0.00010685,2]
[352529313,1739153367169,-940.48393797,0.00010809,2]
[352529371,1739153432032,-343.55762178,0.00010809,2]
[352529379,1739153432100,-3676.20046675,0.00010809,2]
[352529381,1739153432109,-182.13934641,0.00010858,2]
[352529383,1739153432119,-300.0,0.00010899,2]
[352529385,1739153432128,-18549.21913775,0.000109,2]
[352529391,1739153432167,-1341.44909695,0.000109,2]
[352529393,1739153432179,-8.3317653,0.000109,2]
[352529395,1739153432188,-213.37093304,0.00010957,2]
[352529397,1739153432198,-316.62651968,0.00010957,2]
[352529399,1739153432207,-500.0,0.00010957,2]
[352529401,1739153432217,-500.0,0.00010957,2]
[352529403,1739153432226,-500.0,0.00010957,2]
[352529405,1739153432236,-537.86022443,0.00010957,2]
[352529407,1739153432245,-500.0,0.00010957,2]
[352529409,1739153432254,-500.0,0.00010957,2]
[352529411,1739153432264,-500.0,0.00010957,2]
[352529413,1739153432273,-500.0,0.00010957,2]
[352529415,1739153432282,-500.0,0.00010957,2]
[352529417,1739153432292,-500.0,0.00010957,2]
[352529419,1739153432301,-500.0,0.00010957,2]
[352529421,1739153432312,-74.7766599,0.00010957,2]
[352529424,1739153432323,-87.65322903,0.00010957,2]
[352529426,1739153432333,-374.57477097,0.00010957,2]
[352529977,1739153438003,-125.42522903,0.00010957,2]
[352529978,1739153438013,-500.0,0.00010957,2]
[352529979,1739153438022,-500.0,0.00010957,2]
[352529980,1739153438031,-500.0,0.00010957,2]
[352529981,1739153438041,-500.0,0.00010957,2]
[352529982,1739153438050,-500.0,0.00010957,2]
[352529983,1739153438060,-500.0,0.00010957,2]
[352529984,1739153438070,-500.0,0.00010957,2]
[352529985,1739153438079,-500.0,0.00010957,2]
[352529986,1739153438089,-500.0,0.00010957,2]
[352529987,1739153438098,-500.0,0.00010957,2]
[352529989,1739153438107,-500.0,0.00010957,2]
[352529991,1739153438116,-500.0,0.00010957,2]
[352529993,1739153438125,-500.0,0.00010957,2]
[352529995,1739153438135,-650.0,0.00010957,2]
[352529997,1739153438143,-500.0,0.00010957,2]
[352529999,1739153438152,-500.0,0.00010957,2]
[352530001,1739153438161,-320.98171028,0.00010957,2]
[352530003,1739153438170,-504.83027123,0.00010958,2]
[352530005,1739153438180,-501.21124561,0.00010958,2]
[352530007,1739153438189,-500.0,0.00010958,2]
[352530009,1739153438198,-500.0,0.00010958,2]
[352530011,1739153438207,-500.0,0.00010958,2]
[352530013,1739153438216,-500.0,0.00010958,2]
[352530015,1739153438225,-500.0,0.00010958,2]
[352530016,1739153438235,-500.0,0.00010958,2]
[352530017,1739153438244,-500.0,0.00010958,2]
[352530019,1739153438254,-500.0,0.00010958,2]
[352530021,1739153438263,-500.0,0.00010958,2]
[352530024,1739153438273,-500.0,0.00010958,2]
[352530027,1739153438283,-500.0,0.00010958,2]
[352530030,1739153438292,-500.0,0.00010958,2]
[352530033,1739153438301,-500.0,0.00010958,2]
[352530036,1739153438311,-500.0,0.00010958,2]
[352530037,1739153438321,-507.93630419,0.00010958,2]
[352530038,1739153438330,-500.0,0.00010958,2]
[352530039,1739153438339,-500.0,0.00010958,2]
[352530040,1739153438348,-501.48391006,0.00010958,2]
[352530041,1739153438358,-500.0,0.00010958,2]
[352530042,1739153438367,-500.0,0.00010958,2]
[352530043,1739153438376,-500.0,0.00010958,2]
[352530044,1739153438386,-500.0,0.00010958,2]
[352530045,1739153438395,-500.0,0.00010958,2]
[352530046,1739153438404,-306.8049861,0.00010958,2]
[352530047,1739153438414,-500.0,0.00010958,2]
[352530048,1739153438423,-504.34972043,0.00010958,2]
[352530049,1739153438432,-507.21948057,0.00010958,2]
[352530050,1739153438442,-500.0,0.00010958,2]
[352530051,1739153438451,-500.0,0.00010958,2]
[352530052,1739153438460,-277.22965179,0.00010958,2]
[352530053,1739153438469,-500.0,0.00010958,2]
[352530054,1739153438479,-500.0,0.00010958,2]
[352530055,1739153438488,-500.0,0.00010958,2]
[352530056,1739153438498,-500.0,0.00010958,2]
[352530057,1739153438507,-500.0,0.00010958,2]
[352530058,1739153438517,-500.0,0.00010958,2]
[352530059,1739153438526,-500.0,0.00010958,2]
[352530060,1739153438536,-341.08609439,0.00010958,2]
[352530061,1739153438545,-500.0,0.00010958,2]
[352530062,1739153438554,-501.01973623,0.00010958,2]
[352530063,1739153438565,-500.0,0.00010958,2]
[352530064,1739153438575,-500.0,0.00010958,2]
[352530065,1739153438583,-500.0,0.00010958,2]
[352530066,1739153438593,-500.0,0.00010958,2]
[352530067,1739153438602,-500.0,0.00010958,2]
[352530068,1739153438611,-500.0,0.00010958,2]
[352530069,1739153438621,-386.04268912,0.00010958,2]
[352530070,1739153438630,-500.0,0.00010958,2]
[352530071,1739153438639,-500.0,0.00010958,2]
[352530072,1739153438649,-500.0,0.00010958,2]
[352530073,1739153438658,-500.0,0.00010958,2]
[352530074,1739153438668,-500.0,0.00010958,2]
[352530075,1739153438680,-500.0,0.00010958,2]
[352530076,1739153438690,-500.0,0.00010958,2]
[352530077,1739153438699,-500.0,0.00010958,2]
[352530078,1739153438708,-500.0,0.00010958,2]
[352530079,1739153438718,-500.0,0.00010958,2]
[352530080,1739153438728,-500.0,0.00010958,2]
[352530081,1739153438737,-629.58710235,0.00010958,2]
[352530082,1739153438747,-500.0,0.00010958,2]
[352530083,1739153438757,-500.0,0.00010958,2]
[352530084,1739153438766,-500.0,0.00010958,2]
[352530085,1739153438775,-500.0,0.00010958,2]
[352530086,1739153438784,-500.0,0.00010958,2]
[352530087,1739153438793,-500.0,0.00010958,2]
[352530088,1739153438802,-500.0,0.00010958,2]
[352530089,1739153438813,-230.1793234,0.00010958,2]
[352530090,1739153438823,-500.0,0.00010958,2]
[352530091,1739153438833,-528.42,0.00010958,2]
[352530092,1739153438842,-500.0,0.00010958,2]
[352530093,1739153438853,-500.0,0.00010958,2]
[352530094,1739153438957,-502.07647827,0.00010958,2]
[352530095,1739153438967,-509.06823452,0.00010958,2]
[352530096,1739153438976,-500.0,0.00010958,2]
[352530097,1739153438985,-500.0,0.00010958,2]
[352530098,1739153438994,-500.0,0.00010958,2]
[352530099,1739153439003,-500.0,0.00010958,2]
[352530100,1739153439012,-500.0,0.00010958,2]
[352530101,1739153439022,-500.0,0.00010958,2]
[352530102,1739153439031,-500.0,0.00010958,2]
[352530103,1739153439040,-500.0,0.00010958,2]
[352530104,1739153439049,-500.0,0.00010958,2]
[352530105,1739153439058,-500.0,0.00010958,2]
[352530106,1739153439069,-500.0,0.00010958,2]
[352530107,1739153439078,-501.69084307,0.00010958,2]
[352530108,1739153439087,-500.0,0.00010958,2]
[352530109,1739153439096,-639.45646474,0.00010958,2]
[352530110,1739153439105,-500.0,0.00010958,2]
[352530111,1739153439115,-500.0,0.00010958,2]
[352530112,1739153439124,-500.0,0.00010958,2]
[352530113,1739153439134,-500.0,0.00010958,2]
[352530114,1739153439146,-500.0,0.00010958,2]
[352530115,1739153439155,-500.0,0.00010958,2]
[352530116,1739153439165,-500.0,0.00010958,2]
[352530117,1739153439174,-500.0,0.00010958,2]
[352530118,1739153439183,-500.0,0.00010958,2]
[352530119,1739153439192,-500.0,0.00010958,2]
[352530120,1739153439201,-500.0,0.00010958,2]
[352530121,1739153439210,-590.39,0.00010958,2]
[352530122,1739153439220,-500.0,0.00010958,2]
[352530123,1739153439229,-500.0,0.00010958,2]
[352530124,1739153439238,-500.0,0.00010958,2]
[352530125,1739153439248,-500.0,0.00010958,2]
[352530126,1739153439257,-500.0,0.00010958,2]
[352530127,1739153439266,-500.0,0.00010958,2]
[352530128,1739153439276,-500.0,0.00010958,2]
[352530129,1739153439285,-500.0,0.00010958,2]
[352530130,1739153439295,-500.0,0.00010958,2]
[352530131,1739153439304,-500.0,0.00010958,2]
[352530132,1739153439313,-500.0,0.00010958,2]
[352530133,1739153439322,-500.0,0.00010958,2]
[352530134,1739153439331,-500.0,0.00010958,2]
[352530135,1739153439340,-500.0,0.00010958,2]
[352530136,1739153439349,-500.0,0.00010958,2]
[352530137,1739153439358,-500.0,0.00010958,2]
[352530138,1739153439367,-500.0,0.00010958,2]
[352530139,1739153439376,-500.0,0.00010958,2]
[352530140,1739153439385,-550.54473557,0.00010958,2]
[352530141,1739153439394,-634.14154755,0.00010958,2]
[352530142,1739153439403,-500.0,0.00010958,2]
[352530143,1739153439413,-500.0,0.00010958,2]
[352530144,1739153439422,-500.0,0.00010958,2]
[352530145,1739153439431,-500.0,0.00010958,2]
[352530146,1739153439440,-500.0,0.00010958,2]
[352530147,1739153439449,-500.0,0.00010958,2]
[352530148,1739153439458,-500.0,0.00010958,2]
[352530149,1739153439467,-500.0,0.00010958,2]
[352530150,1739153439476,-500.0,0.00010958,2]
[352530151,1739153439486,-500.0,0.00010958,2]
[352530152,1739153439495,-500.0,0.00010958,2]
[352530153,1739153439504,-500.0,0.00010958,2]
[352530154,1739153439513,-500.0,0.00010958,2]
[352530155,1739153439522,-501.06790988,0.00010958,2]
[352530156,1739153439531,-500.0,0.00010958,2]
[352530157,1739153439540,-500.0,0.00010958,2]
[352530158,1739153439549,-500.0,0.00010958,2]
[352530159,1739153439558,-500.0,0.00010958,2]
[352530160,1739153439570,-500.0,0.00010958,2]
[352530161,1739153439579,-500.0,0.00010958,2]
[352530162,1739153439589,-500.0,0.00010958,2]
[352530163,1739153439599,-506.00113498,0.00010958,2]
[352530164,1739153439608,-500.0,0.00010958,2]
[352530165,1739153439617,-500.0,0.00010958,2]
[352530166,1739153439626,-500.0,0.00010958,2]
[352530167,1739153439636,-500.0,0.00010958,2]
[352530168,1739153439645,-500.0,0.00010958,2]
[352530169,1739153439655,-500.0,0.00010958,2]
[352530170,1739153439664,-939.87,0.00010958,2]
[352530171,1739153439678,-500.0,0.00010958,2]
[352530172,1739153439687,-500.0,0.00010958,2]
[352530174,1739153439697,-500.0,0.00010958,2]
[352530176,1739153439707,-500.0,0.00010958,2]
[352530177,1739153439718,-500.0,0.00010958,2]
[352530178,1739153439726,-500.0,0.00010958,2]
[352530179,1739153439735,-502.34032963,0.00010958,2]
[352530180,1739153439745,-500.0,0.00010958,2]
[352530181,1739153439754,-500.0,0.00010958,2]
[352530182,1739153439765,-500.0,0.00010958,2]
[352530183,1739153439774,-500.0,0.00010958,2]
[352530184,1739153439783,-500.0,0.00010958,2]
[352530185,1739153439792,-500.0,0.00010958,2]
[352530186,1739153439802,-500.0,0.00010958,2]
[352530187,1739153439812,-500.0,0.00010958,2]
[352530188,1739153439821,-500.0,0.00010958,2]
[352530189,1739153439830,-503.0046149,0.00010958,2]
[352530190,1739153439840,-500.0,0.00010958,2]
[352530191,1739153439849,-500.0,0.00010958,2]
[352530192,1739153439858,-500.0,0.00010958,2]
[352530193,1739153439867,-500.0,0.00010958,2]
[352530194,1739153439876,-500.0,0.00010958,2]
[352530195,1739153439885,-500.0,0.00010958,2]
[352530196,1739153439894,-500.0,0.00010958,2]
[352530197,1739153439903,-500.0,0.00010958,2]
[352530198,1739153439913,-500.0,0.00010958,2]
[352530199,1739153439923,-499.10780528,0.00010958,2]
[352530200,1739153439932,-500.0,0.00010958,2]
[352530201,1739153439941,-500.0,0.00010958,2]
[352530202,1739153439950,-500.0,0.00010958,2]
[352530203,1739153439960,-500.0,0.00010958,2]
[352530204,1739153439970,-500.0,0.00010958,2]
[352530205,1739153439979,-223.44159338,0.00010958,2]
[352530206,1739153439988,-500.0,0.00010958,2]
[352530207,1739153439998,-500.0,0.00010958,2]
[352530208,1739153440008,-500.0,0.00010958,2]
[352530209,1739153440017,-500.0,0.00010958,2]
[352530210,1739153440027,-500.0,0.00010958,2]
[352530211,1739153440037,-500.0,0.00010958,2]
[352530212,1739153440047,-1474.55,0.00010958,2]
[352530213,1739153440056,-500.0,0.00010958,2]
[352530214,1739153440066,-500.0,0.00010958,2]
[352530215,1739153440076,-457.64948766,0.00010958,2]
[352530216,1739153440085,-2048.45,0.00010958,2]
[352530217,1739153440094,-500.0,0.00010958,2]
[352530218,1739153440103,-500.0,0.00010958,2]
[352530219,1739153440112,-500.0,0.00010958,2]
[352530220,1739153440122,-466.79812168,0.00010958,2]
[352530221,1739153440131,-574.99,0.00010958,2]
[352530222,1739153440141,-500.0,0.00010958,2]
[352530223,1739153440150,-500.0,0.00010958,2]
[352530224,1739153440159,-500.0,0.00010958,2]
[352530225,1739153440169,-500.0,0.00010958,2]
[352530226,1739153440178,-500.0,0.00010958,2]
[352530227,1739153440188,-500.0,0.00010958,2]
[352530228,1739153440197,-500.0,0.00010958,2]
[352530229,1739153440207,-500.0,0.00010958,2]
[352530230,1739153440216,-500.0,0.00010958,2]
[352530231,1739153440225,-500.0,0.00010958,2]
[352530232,1739153440235,-500.0,0.00010958,2]
[352530233,1739153440244,-500.0,0.00010958,2]
[352530234,1739153440253,-500.0,0.00010958,2]
[352530235,1739153440262,-500.0,0.00010958,2]
[352530236,1739153440272,-2155.17,0.00010958,2]
[352530237,1739153440281,-500.0,0.00010958,2]
[352530238,1739153440291,-1902.27,0.00010958,2]
[352530239,1739153440300,-501.22094295,0.00010958,2]
[352530240,1739153440310,-501.41088043,0.00010958,2]
[352530241,1739153440320,-501.09374804,0.00010958,2]
[352530242,1739153440329,-225.63306471,0.00010958,2]
[352530243,1739153440339,-1788.34,0.00010958,2]
[352530244,1739153440348,-500.0,0.00010958,2]
[352530245,1739153440358,-1069.92,0.00010958,2]
[352530246,1739153440367,-500.0,0.00010958,2]
[352530247,1739153440376,-500.0,0.00010958,2]
[352530248,1739153440386,-491.13579094,0.00010958,2]
[352530249,1739153440396,-500.0,0.00010958,2]
[352530250,1739153440406,-500.0,0.00010958,2]
[352530251,1739153440415,-501.26103203,0.00010958,2]
[352530252,1739153440424,-500.0,0.00010958,2]
[352530253,1739153440434,-592.99,0.00010958,2]
[352530254,1739153440443,-500.0,0.00010958,2]
[352530255,1739153440453,-500.0,0.00010958,2]
[352530256,1739153440463,-500.0,0.00010958,2]
[352530257,1739153440472,-501.92605589,0.00010958,2]
[352530258,1739153440481,-500.0,0.00010958,2]
[352530259,1739153440491,-500.0,0.00010958,2]
[352530260,1739153440500,-500.0,0.00010958,2]
[352530261,1739153440509,-503.10271082,0.00010958,2]
[352530262,1739153440519,-500.0,0.00010958,2]
[352530263,1739153440529,-500.0,0.00010958,2]
[352530264,1739153440538,-500.0,0.00010958,2]
[352530265,1739153440548,-500.0,0.00010958,2]
[352530266,1739153440557,-501.62171911,0.00010958,2]
[352530267,1739153440568,-500.0,0.00010958,2]
[352530268,1739153440578,-500.0,0.00010958,2]
[352530269,1739153440587,-500.0,0.00010958,2]
[352530270,1739153440596,-500.0,0.00010958,2]
[352530271,1739153440605,-621.16,0.00010958,2]
[352530272,1739153440615,-500.0,0.00010958,2]
[352530273,1739153440624,-500.0,0.00010958,2]
[352530274,1739153440638,-500.0,0.00010958,2]
[352530275,1739153440648,-500.0,0.00010958,2]
[352530276,1739153440657,-676.19,0.00010958,2]
[352530277,1739153440666,-500.0,0.00010958,2]
[352530278,1739153440680,-500.0,0.00010958,2]
[352530279,1739153440689,-500.0,0.00010958,2]
[352530280,1739153440698,-268.61044842,0.00010958,2]
[352530281,1739153440707,-500.0,0.00010958,2]
[352530282,1739153440717,-500.0,0.00010958,2]
[352530283,1739153440726,-6646.62,0.00010958,2]
[352530284,1739153440735,-500.0,0.00010958,2]
[352530285,1739153440745,-500.0,0.00010958,2]
[352530286,1739153440755,-500.0,0.00010958,2]
[352530287,1739153440764,-501.2051404,0.00010958,2]
[352530288,1739153440773,-844.14,0.00010958,2]
[352530289,1739153440782,-500.0,0.00010958,2]
[352530290,1739153440791,-500.0,0.00010958,2]
[352530291,1739153440801,-501.44177746,0.00010958,2]
[352530292,1739153440812,-500.0,0.00010958,2]
[352530293,1739153440821,-500.0,0.00010958,2]
[352530294,1739153440830,-11111.66,0.00010958,2]
[352530295,1739153440840,-501.85066333,0.00010958,2]
[352530296,1739153440849,-500.0,0.00010958,2]
[352530297,1739153440859,-500.0,0.00010958,2]
[352530298,1739153440868,-500.0,0.00010958,2]
[352530299,1739153440877,-501.16755942,0.00010958,2]
[352530300,1739153440886,-677.41,0.00010958,2]
[352530301,1739153440896,-500.0,0.00010958,2]
[352530302,1739153440905,-500.0,0.00010958,2]
[352530303,1739153440914,-500.0,0.00010958,2]
[352530304,1739153440924,-500.0,0.00010958,2]
[352530305,1739153441013,-500.0,0.00010958,2]
[352530306,1739153441024,-661.95,0.00010958,2]
[352530307,1739153441034,-500.0,0.00010958,2]
[352530308,1739153441043,-500.0,0.00010958,2]
[352530309,1739153441053,-500.0,0.00010958,2]
[352530310,1739153441063,-500.0,0.00010958,2]
[352530311,1739153441072,-500.0,0.00010958,2]
[352530312,1739153441087,-500.0,0.00010958,2]
[352530313,1739153441095,-500.0,0.00010958,2]
[352530314,1739153441105,-500.0,0.00010958,2]
[352530315,1739153441114,-500.0,0.00010958,2]
[352530316,1739153441123,-500.0,0.00010958,2]
[352530317,1739153441133,-500.0,0.00010958,2]
[352530318,1739153441142,-1218.13,0.00010958,2]
[352530319,1739153441151,-500.0,0.00010958,2]
[352530320,1739153441160,-500.0,0.00010958,2]
[352530321,1739153441169,-500.0,0.00010958,2]
[352530322,1739153441178,-500.0,0.00010958,2]
[352530323,1739153441187,-500.0,0.00010958,2]
[352530324,1739153441197,-500.0,0.00010958,2]
[352530325,1739153441206,-502.84029761,0.00010958,2]
[352530326,1739153441215,-500.0,0.00010958,2]
[352530327,1739153441223,-611.22755659,0.00010958,2]
[352530328,1739153441231,-500.0,0.00010958,2]
[352530329,1739153441239,-500.0,0.00010958,2]
[352530330,1739153441247,-500.0,0.00010958,2]
[352530331,1739153441255,-500.0,0.00010958,2]
[352530332,1739153441263,-500.0,0.00010958,2]
[352530333,1739153441271,-1007.54,0.00010958,2]
[352530334,1739153441280,-500.0,0.00010958,2]
[352530335,1739153441289,-500.0,0.00010958,2]
[352530336,1739153441297,-560.96,0.00010958,2]
[352530337,1739153441305,-500.0,0.00010958,2]
[352530338,1739153441316,-569.61,0.00010958,2]
[352530339,1739153441325,-500.0,0.00010958,2]
[352530340,1739153441334,-500.0,0.00010958,2]
[352530341,1739153441343,-500.0,0.00010958,2]